[Event "*** Titled Tuesday Blitz"]
[Site "Chess.com"]
[Date "2018.05.01"]
[Round "7"]
[White "Karina_Oparina"]
[Black "joejan"]
[Result "1-0"]
[WhiteElo "2109"]
[BlackElo "2139"]
[TimeControl "180+2"]
[EndTime "14:36:23 PDT"]
[Termination "Karina_Oparina won by resignation"]

1. Nf3 {[%clk 0:02:56.3]} 1... d5 {[%clk 0:03:00.4]} 2. g3 {[%clk 0:02:56.5]}
2... c6 {[%clk 0:03:00.1]} 3. Bg2 {[%clk 0:02:56.4]} 3... Bf5 {[%clk 0:03:00.7]}
4. O-O {[%clk 0:02:54.4]} 4... e6 {[%clk 0:03:01.8]} 5. c4 {[%clk 0:02:55.1]}
5... Nf6 {[%clk 0:03:02.5]} 6. cxd5 {[%clk 0:02:51.7]} 6... cxd5 {[%clk
0:03:00.8]} 7. Qb3 {[%clk 0:02:49.5]} 7... Qb6 {[%clk 0:03:00.5]} 8. Qxb6 {[%clk
0:02:48.7]} 8... axb6 {[%clk 0:03:01.6]} 9. d3 {[%clk 0:02:47.8]} 9... Nc6
{[%clk 0:02:54.3]} 10. Nc3 {[%clk 0:02:44.7]} 10... Be7 {[%clk 0:02:53.4]} 11.
Nb5 {[%clk 0:02:34.8]} 11... O-O {[%clk 0:02:51.8]} 12. Nfd4 {[%clk 0:02:33.8]}
12... Bg6 {[%clk 0:02:49.8]} 13. Be3 {[%clk 0:02:28.8]} 13... e5 {[%clk
0:02:42.9]} 14. Nxc6 {[%clk 0:02:19]} 14... bxc6 {[%clk 0:02:43.1]} 15. Nc7
{[%clk 0:02:19.5]} 15... Rab8 {[%clk 0:02:40.5]} 16. Na6 {[%clk 0:02:12.6]}
16... Rb7 {[%clk 0:02:37.9]} 17. a3 {[%clk 0:02:03.1]} 17... h6 {[%clk
0:02:31.6]} 18. Nb4 {[%clk 0:01:55.2]} 18... Rc8 {[%clk 0:02:12.2]} 19. Rfc1
{[%clk 0:01:52.7]} 19... Bxb4 {[%clk 0:02:00.6]} 20. axb4 {[%clk 0:01:53.1]}
20... Bf5 {[%clk 0:01:55]} 21. b5 {[%clk 0:01:44.1]} 21... c5 {[%clk 0:01:50.8]}
22. b4 {[%clk 0:01:38.3]} 22... Rbc7 {[%clk 0:01:28.5]} 23. bxc5 {[%clk
0:01:37.9]} 23... d4 {[%clk 0:01:29.1]} 24. cxb6 {[%clk 0:01:31.5]} 24... Rxc1+
{[%clk 0:01:26]} 25. Bxc1 {[%clk 0:01:17.4]} 25... Rb8 {[%clk 0:01:12.9]} 26. b7
{[%clk 0:01:17.3]} 26... Kh7 {[%clk 0:01:02.1]} 27. Ra8 {[%clk 0:01:15.5]} 27...
Nd7 {[%clk 0:01:01.3]} 28. Ba3 {[%clk 0:01:15.1]} 28... e4 {[%clk 0:00:57.6]}
29. dxe4 {[%clk 0:01:04.3]} 29... Rxb7 {[%clk 0:00:55.7]} 30. exf5 {[%clk
0:01:02.2]} 30... Rxb5 {[%clk 0:00:57.1]} 31. Bc6 {[%clk 0:00:58.7]} 31... Rb1+
{[%clk 0:00:55.8]} 32. Kg2 {[%clk 0:00:59.4]} 32... Ne5 {[%clk 0:00:56.4]} 33.
Be4 {[%clk 0:00:56.5]} 33... Re1 {[%clk 0:00:55]} 34. f6+ {[%clk 0:00:54.2]}
34... g6 {[%clk 0:00:56.1]} 35. Re8 {[%clk 0:00:44.2]} 35... Ng4 {[%clk
0:00:56.4]} 36. Re7 {[%clk 0:00:28.2]} 36... Kg8 {[%clk 0:00:55.6]} 37. Bd5
{[%clk 0:00:26.2]} 37... Nxf6 {[%clk 0:00:50.8]} 38. Bc4 {[%clk 0:00:23.1]}
38... d3 {[%clk 0:00:43.2]} 39. exd3 {[%clk 0:00:21.3]} 39... Rxe7 {[%clk
0:00:41.7]} 40. Bxe7 {[%clk 0:00:21.7]} 40... Nd7 {[%clk 0:00:43]} 41. Bd6
{[%clk 0:00:22]} 41... Kg7 {[%clk 0:00:41.9]} 42. Kf3 {[%clk 0:00:21.3]} 42...
f5 {[%clk 0:00:42.7]} 43. Be6 {[%clk 0:00:20.1]} 43... Nb6 {[%clk 0:00:38.8]}
44. Be5+ {[%clk 0:00:20.3]} 44... Kf8 {[%clk 0:00:38.7]} 45. Bc7 {[%clk
0:00:20.9]} 45... Na4 {[%clk 0:00:37.3]} 46. Bd6+ {[%clk 0:00:19.9]} 46... Kg7
{[%clk 0:00:36.8]} 47. Ke3 {[%clk 0:00:19.8]} 47... Kf6 {[%clk 0:00:34.1]} 48.
Bb3 {[%clk 0:00:19.5]} 48... Nb6 {[%clk 0:00:33.2]} 49. Bc5 {[%clk 0:00:19.6]}
49... Nd7 {[%clk 0:00:33.1]} 50. Kd4 {[%clk 0:00:20.3]} 50... Ne5 {[%clk
0:00:32]} 51. Bd5 {[%clk 0:00:20.2]} 51... Ng4 {[%clk 0:00:32.2]} 52. h4 {[%clk
0:00:17.9]} 52... Nxf2 {[%clk 0:00:32.5]} 53. Ke3 {[%clk 0:00:17.7]} 53... Ng4+
{[%clk 0:00:32.5]} 54. Kf3 {[%clk 0:00:16.9]} 54... Ne5+ {[%clk 0:00:32.4]} 55.
Ke2 {[%clk 0:00:17.6]} 55... g5 {[%clk 0:00:28.9]} 56. Bd4 {[%clk 0:00:17.4]}
56... f4 {[%clk 0:00:23.3]} 57. hxg5+ {[%clk 0:00:15.9]} 57... hxg5 {[%clk
0:00:23.2]} 58. g4 {[%clk 0:00:16]} 1-0

[Event "*** Titled Tuesday Blitz"]
[Site "Chess.com"]
[Date "2018.05.01"]
[Round "7"]
[White "Khamrakulov_Djurabek"]
[Black "Ginger_GM"]
[Result "0-1"]
[WhiteElo "2632"]
[BlackElo "2495"]
[TimeControl "180+2"]
[EndTime "14:37:01 PDT"]
[Termination "Ginger_GM won by resignation"]

1. e4 {[%clk 0:03:01.9]} 1... c5 {[%clk 0:02:58.4]} 2. c3 {[%clk 0:03:02.5]}
2... d5 {[%clk 0:02:55.8]} 3. exd5 {[%clk 0:03:03.5]} 3... Nf6 {[%clk 0:02:57]}
4. d4 {[%clk 0:03:04.6]} 4... cxd4 {[%clk 0:02:57]} 5. Qxd4 {[%clk 0:03:05.2]}
5... Nxd5 {[%clk 0:02:57.6]} 6. c4 {[%clk 0:03:02.3]} 6... Nb4 {[%clk
0:02:57.5]} 7. Qxd8+ {[%clk 0:03:03.1]} 7... Kxd8 {[%clk 0:02:58.2]} 8. Na3
{[%clk 0:03:04.3]} 8... N8c6 {[%clk 0:02:54.5]} 9. Bd2 {[%clk 0:03:02.5]} 9...
Bf5 {[%clk 0:02:52.3]} 10. Nf3 {[%clk 0:02:58.7]} 10... e5 {[%clk 0:02:50.7]}
11. Be2 {[%clk 0:02:53]} 11... Nd3+ {[%clk 0:02:48.7]} 12. Bxd3 {[%clk
0:02:53.9]} 12... Bxd3 {[%clk 0:02:49.9]} 13. O-O-O {[%clk 0:02:55.5]} 13... Ke8
{[%clk 0:02:34.9]} 14. Bc3 {[%clk 0:02:36]} 14... Be2 {[%clk 0:02:29]} 15. Nb5
{[%clk 0:02:18.8]} 15... Bxd1 {[%clk 0:02:07.9]} 16. Rxd1 {[%clk 0:02:19.4]}
16... Rc8 {[%clk 0:02:04.7]} 17. Nxe5 {[%clk 0:02:18.7]} 17... Nxe5 {[%clk
0:02:04]} 18. Bxe5 {[%clk 0:02:18.4]} 18... Rxc4+ {[%clk 0:02:02.5]} 19. Kb1
{[%clk 0:02:18.9]} 19... f6 {[%clk 0:01:59.2]} 20. Bc3 {[%clk 0:01:45.9]} 20...
a6 {[%clk 0:01:53.5]} 21. Nd4 {[%clk 0:01:45.3]} 21... Kf7 {[%clk 0:01:49.4]}
22. Nb3 {[%clk 0:01:43.1]} 22... Ke8 {[%clk 0:01:25.4]} 23. Re1+ {[%clk
0:01:33.3]} 23... Be7 {[%clk 0:01:20.3]} 24. Nd4 {[%clk 0:01:19.2]} 24... Kf7
{[%clk 0:01:11.4]} 25. Nf5 {[%clk 0:01:19.6]} 25... Rc7 {[%clk 0:01:11.7]} 26.
f3 {[%clk 0:01:14]} 26... Rd7 {[%clk 0:01:06.6]} 27. a4 {[%clk 0:01:11.2]} 27...
Rc8 {[%clk 0:01:04.8]} 28. g4 {[%clk 0:01:09.9]} 28... Bf8 {[%clk 0:00:53.7]}
29. Re4 {[%clk 0:01:08.6]} 29... g6 {[%clk 0:00:49]} 30. Ng3 {[%clk 0:01:08.4]}
30... Be7 {[%clk 0:00:46.9]} 31. h4 {[%clk 0:01:07.3]} 31... Rdc7 {[%clk
0:00:46.7]} 32. a5 {[%clk 0:00:56.2]} 32... Rc4 {[%clk 0:00:46.7]} 33. Re3
{[%clk 0:00:53]} 33... Bb4 {[%clk 0:00:44.1]} 34. Ne4 {[%clk 0:00:53.8]} 34...
Be7 {[%clk 0:00:36.3]} 35. g5 {[%clk 0:00:40.6]} 35... f5 {[%clk 0:00:33.9]} 36.
Nf6 {[%clk 0:00:41.3]} 36... Bxf6 {[%clk 0:00:33.8]} 37. gxf6 {[%clk 0:00:42.5]}
37... Re8 {[%clk 0:00:34.8]} 38. Rd3 {[%clk 0:00:43.6]} 38... Rc7 {[%clk
0:00:34.5]} 39. f4 {[%clk 0:00:44.8]} 39... Re6 {[%clk 0:00:33.2]} 40. Be5
{[%clk 0:00:45.8]} 40... Rxe5 {[%clk 0:00:28]} 41. fxe5 {[%clk 0:00:46.3]} 41...
Ke6 {[%clk 0:00:29.6]} 42. Rc3 {[%clk 0:00:33.6]} 42... Rd7 {[%clk 0:00:28.8]}
43. Rc5 {[%clk 0:00:34.4]} 43... f4 {[%clk 0:00:29.2]} 44. Kc2 {[%clk
0:00:35.2]} 44... f3 {[%clk 0:00:29.8]} 45. Rc3 {[%clk 0:00:36.4]} 45... Kxe5
{[%clk 0:00:26.1]} 46. Rxf3 {[%clk 0:00:37.2]} 46... Rf7 {[%clk 0:00:27.2]} 47.
Re3+ {[%clk 0:00:37.1]} 47... Kxf6 {[%clk 0:00:28.3]} 48. Kb3 {[%clk 0:00:37.7]}
48... Rc7 {[%clk 0:00:27.1]} 49. Rf3+ {[%clk 0:00:37.7]} 49... Ke5 {[%clk
0:00:26.9]} 50. Kb4 {[%clk 0:00:39]} 50... h6 {[%clk 0:00:26.9]} 51. Rf8 {[%clk
0:00:39.7]} 51... g5 {[%clk 0:00:27.6]} 52. h5 {[%clk 0:00:40.7]} 52... g4
{[%clk 0:00:26.3]} 53. Rh8 {[%clk 0:00:41.7]} 53... Rc6 {[%clk 0:00:25.5]} 54.
Rh7 {[%clk 0:00:42.9]} 54... g3 {[%clk 0:00:25]} 55. Rxb7 {[%clk 0:00:43.7]}
55... Kf4 {[%clk 0:00:26.3]} 56. Rf7+ {[%clk 0:00:44.2]} 56... Kg4 {[%clk
0:00:27.3]} 57. Rg7+ {[%clk 0:00:45.4]} 57... Kh3 {[%clk 0:00:27.7]} 58. Rg6
{[%clk 0:00:46.5]} 58... g2 {[%clk 0:00:21.4]} 59. Rxc6 {[%clk 0:00:44.7]} 59...
g1=Q {[%clk 0:00:22.7]} 60. Ka4 {[%clk 0:00:41.6]} 60... Qd4+ {[%clk 0:00:22.3]}
61. b4 {[%clk 0:00:42]} 61... Qd5 {[%clk 0:00:20.3]} 62. Rc3+ {[%clk 0:00:40.8]}
62... Kg4 {[%clk 0:00:20.8]} 63. Ka3 {[%clk 0:00:41.4]} 63... Qxh5 {[%clk
0:00:20.2]} 64. Rc4+ {[%clk 0:00:42.6]} 64... Kf3 {[%clk 0:00:21.2]} 65. Rc5
{[%clk 0:00:43.4]} 65... Qh1 {[%clk 0:00:20.5]} 66. b5 {[%clk 0:00:43.6]} 66...
Qa1+ {[%clk 0:00:20.6]} 67. Kb4 {[%clk 0:00:44.5]} 67... Qb2+ {[%clk 0:00:21.9]}
68. Kc4 {[%clk 0:00:45.5]} 68... axb5+ {[%clk 0:00:23]} 69. Rxb5 {[%clk
0:00:45.5]} 69... Qa2+ {[%clk 0:00:24.4]} 70. Kc5 {[%clk 0:00:45.5]} 70... h5
{[%clk 0:00:25.4]} 71. Kb6 {[%clk 0:00:46]} 71... h4 {[%clk 0:00:26.2]} 72. a6
{[%clk 0:00:47.3]} 72... h3 {[%clk 0:00:27]} 73. a7 {[%clk 0:00:48.6]} 73... h2
{[%clk 0:00:26.5]} 74. Ra5 {[%clk 0:00:49.4]} 74... Qe6+ {[%clk 0:00:27]} 75.
Kc5 {[%clk 0:00:46.7]} 75... Qe7+ {[%clk 0:00:26.3]} 76. Kb6 {[%clk 0:00:47.3]}
76... Qd8+ {[%clk 0:00:26.7]} 77. Kb5 {[%clk 0:00:45.1]} 77... Qa8 {[%clk
0:00:27.7]} 78. Ra3+ {[%clk 0:00:46]} 78... Kg4 {[%clk 0:00:28.3]} 79. Ra4+
{[%clk 0:00:46.9]} 79... Kg5 {[%clk 0:00:29.5]} 0-1

[Event "*** Titled Tuesday Blitz"]
[Site "Chess.com"]
[Date "2018.05.01"]
[Round "7"]
[White "chessking2151"]
[Black "rasmussvane"]
[Result "1-0"]
[WhiteElo "2432"]
[BlackElo "2584"]
[TimeControl "180+2"]
[EndTime "14:37:06 PDT"]
[Termination "chessking2151 won by resignation"]

1. e4 {[%clk 0:03:01.9]} 1... c6 {[%clk 0:03:00.3]} 2. d4 {[%clk 0:03:01.9]}
2... d5 {[%clk 0:03:01.4]} 3. Nd2 {[%clk 0:03:03.4]} 3... dxe4 {[%clk
0:03:02.5]} 4. Nxe4 {[%clk 0:03:05.3]} 4... Nf6 {[%clk 0:03:04]} 5. Nxf6+ {[%clk
0:03:05.8]} 5... exf6 {[%clk 0:03:05.9]} 6. c3 {[%clk 0:03:06.1]} 6... Bd6
{[%clk 0:03:07.4]} 7. Bd3 {[%clk 0:03:07.4]} 7... O-O {[%clk 0:03:09]} 8. Qc2
{[%clk 0:03:07.7]} 8... Re8+ {[%clk 0:03:10.1]} 9. Ne2 {[%clk 0:03:08.8]} 9...
h5 {[%clk 0:03:11.6]} 10. Be3 {[%clk 0:03:07.7]} 10... Nd7 {[%clk 0:03:12.6]}
11. O-O-O {[%clk 0:03:05]} 11... Nf8 {[%clk 0:03:13.9]} 12. h3 {[%clk
0:03:04.1]} 12... h4 {[%clk 0:03:14.7]} 13. Rde1 {[%clk 0:03:01]} 13... Be6
{[%clk 0:03:15.5]} 14. a3 {[%clk 0:02:55.8]} 14... b5 {[%clk 0:03:15.2]} 15. Nf4
{[%clk 0:02:55.4]} 15... Bxf4 {[%clk 0:03:15.7]} 16. Bxf4 {[%clk 0:02:56]} 16...
Bd5 {[%clk 0:03:03.8]} 17. f3 {[%clk 0:02:56.1]} 17... a5 {[%clk 0:03:01.2]} 18.
Qf2 {[%clk 0:02:48.6]} 18... Ng6 {[%clk 0:02:58]} 19. Rxe8+ {[%clk 0:02:42.3]}
19... Qxe8 {[%clk 0:02:58.5]} 20. Bd6 {[%clk 0:02:43.5]} 20... Qd7 {[%clk
0:02:57.1]} 21. Bc5 {[%clk 0:02:43.4]} 21... Nf4 {[%clk 0:02:49]} 22. Bc2 {[%clk
0:02:44.5]} 22... g5 {[%clk 0:02:44.5]} 23. Re1 {[%clk 0:02:05.6]} 23... Re8
{[%clk 0:02:40.5]} 24. Rxe8+ {[%clk 0:01:59.6]} 24... Qxe8 {[%clk 0:02:41.6]}
25. Kd2 {[%clk 0:02:01.1]} 25... Qe6 {[%clk 0:02:37.6]} 26. Bb6 {[%clk
0:01:55.8]} 26... a4 {[%clk 0:02:37.6]} 27. Bc7 {[%clk 0:01:53.6]} 27... Bb3
{[%clk 0:02:26.5]} 28. Bxf4 {[%clk 0:01:47.9]} 28... Bxc2 {[%clk 0:02:27.4]} 29.
Kxc2 {[%clk 0:01:13.6]} 29... Qf5+ {[%clk 0:02:27.2]} 30. Kc1 {[%clk 0:01:13.2]}
30... Qxf4+ {[%clk 0:02:29.1]} 31. Qd2 {[%clk 0:01:14.5]} 31... Qg3 {[%clk
0:02:24.8]} 32. Qe2 {[%clk 0:01:14.2]} 32... Kg7 {[%clk 0:02:26.3]} 33. Kd2
{[%clk 0:01:12.5]} 33... Qf4+ {[%clk 0:02:24.8]} 34. Kd1 {[%clk 0:01:13]} 34...
Qd6 {[%clk 0:02:18.5]} 35. Ke1 {[%clk 0:01:04.4]} 35... Qd5 {[%clk 0:02:16.8]}
36. Kf1 {[%clk 0:01:02.3]} 36... Qa2 {[%clk 0:02:00.8]} 37. Qc2 {[%clk
0:00:58.4]} 37... Qa1+ {[%clk 0:01:59.3]} 38. Kf2 {[%clk 0:00:57.4]} 38... Qh1
{[%clk 0:01:57.3]} 39. c4 {[%clk 0:00:34.2]} 39... bxc4 {[%clk 0:01:50.6]} 40.
Qxc4 {[%clk 0:00:35]} 40... Qd1 {[%clk 0:01:51.8]} 41. Qc3 {[%clk 0:00:28.1]}
41... Kg6 {[%clk 0:01:51.5]} 42. Qb4 {[%clk 0:00:19.8]} 42... Qc2+ {[%clk
0:01:50.8]} 43. Kf1 {[%clk 0:00:19.6]} 43... Kf5 {[%clk 0:01:48.5]} 44. Qc3
{[%clk 0:00:14.6]} 44... Qd1+ {[%clk 0:01:31.4]} 45. Kf2 {[%clk 0:00:15.5]}
45... Kg6 {[%clk 0:01:32.9]} 46. Qb4 {[%clk 0:00:11.6]} 46... Qc2+ {[%clk
0:01:29.9]} 47. Kf1 {[%clk 0:00:12.2]} 47... Qd3+ {[%clk 0:01:30]} 48. Kf2
{[%clk 0:00:13.4]} 48... Qd1 {[%clk 0:01:25.8]} 49. Qc3 {[%clk 0:00:13.2]} 49...
Kg7 {[%clk 0:01:26.8]} 50. Qb4 {[%clk 0:00:12.7]} 50... Qc2+ {[%clk 0:01:24.3]}
51. Kf1 {[%clk 0:00:13.6]} 51... f5 {[%clk 0:01:14.6]} 52. Qc3 {[%clk
0:00:13.5]} 52... Qd1+ {[%clk 0:01:12.8]} 53. Kf2 {[%clk 0:00:14.7]} 53... Kg6
{[%clk 0:01:14.3]} 54. Qxc6+ {[%clk 0:00:15.1]} 54... Kg7 {[%clk 0:01:14.2]} 55.
Qc3 {[%clk 0:00:15.8]} 55... f4 {[%clk 0:01:14.1]} 56. d5+ {[%clk 0:00:11.9]}
56... f6 {[%clk 0:01:15.5]} 57. Qc7+ {[%clk 0:00:12.3]} 57... Kg6 {[%clk
0:01:17]} 58. Qc4 {[%clk 0:00:10.5]} 58... Qd2+ {[%clk 0:01:17.3]} 59. Kg1
{[%clk 0:00:10.7]} 59... Qxb2 {[%clk 0:01:13.9]} 60. Qe4+ {[%clk 0:00:10.6]}
60... Kh6 {[%clk 0:01:12]} 61. Qxa4 {[%clk 0:00:11.3]} 61... Qd2 {[%clk
0:01:09.1]} 62. Qe4 {[%clk 0:00:11.3]} 62... Qc1+ {[%clk 0:01:07]} 63. Kh2
{[%clk 0:00:11.6]} 63... Qxa3 {[%clk 0:01:08.5]} 64. Qe6 {[%clk 0:00:12]} 64...
Kg7 {[%clk 0:00:59.8]} 65. d6 {[%clk 0:00:12.6]} 65... Qe3 {[%clk 0:01:00.9]}
66. Qd5 {[%clk 0:00:07.1]} 66... Qe1 {[%clk 0:00:57.9]} 67. Qb7+ {[%clk
0:00:04.9]} 67... Kh6 {[%clk 0:00:58.4]} 68. Qd5 {[%clk 0:00:04.1]} 68... f5
{[%clk 0:00:56.3]} 69. Qxf5 {[%clk 0:00:02.6]} 69... Qg3+ {[%clk 0:00:56.7]} 70.
Kg1 {[%clk 0:00:04.1]} 70... Qe1+ {[%clk 0:00:58.6]} 71. Kh2 {[%clk 0:00:05.4]}
71... Qf2 {[%clk 0:00:55.8]} 72. Qg4 {[%clk 0:00:05.6]} 72... Qd4 {[%clk
0:00:54.1]} 73. Qe6+ {[%clk 0:00:06.6]} 73... Kh5 {[%clk 0:00:52.8]} 74. d7
{[%clk 0:00:05.5]} 74... Qd2 {[%clk 0:00:53]} 75. Qf7+ {[%clk 0:00:06]} 75...
Kh6 {[%clk 0:00:54]} 76. Qf6+ {[%clk 0:00:07.2]} 76... Kh5 {[%clk 0:00:55.4]}
77. d8=Q {[%clk 0:00:07.6]} 1-0

[Event "*** Titled Tuesday Blitz"]
[Site "Chess.com"]
[Date "2018.05.01"]
[Round "7"]
[White "Zenzo"]
[Black "FMJoseHerrera"]
[Result "1/2-1/2"]
[WhiteElo "2399"]
[BlackElo "2422"]
[TimeControl "180+2"]
[EndTime "14:37:29 PDT"]
[Termination "Game drawn by stalemate"]

1. e4 {[%clk 0:03:01.9]} 1... c5 {[%clk 0:02:59.3]} 2. Nf3 {[%clk 0:03:02.7]}
2... e6 {[%clk 0:02:59.2]} 3. d4 {[%clk 0:03:04]} 3... cxd4 {[%clk 0:03:01.1]}
4. Nxd4 {[%clk 0:03:05.6]} 4... a6 {[%clk 0:03:02.2]} 5. Nc3 {[%clk 0:03:06.8]}
5... Qc7 {[%clk 0:03:03.5]} 6. Bd3 {[%clk 0:03:06.9]} 6... d6 {[%clk 0:03:04.6]}
7. O-O {[%clk 0:03:07.6]} 7... Nd7 {[%clk 0:03:05.5]} 8. f4 {[%clk 0:03:08.2]}
8... Ngf6 {[%clk 0:03:06.6]} 9. Qf3 {[%clk 0:03:05.9]} 9... Be7 {[%clk
0:03:07.4]} 10. Be3 {[%clk 0:03:02.3]} 10... b6 {[%clk 0:02:55.9]} 11. Qh3
{[%clk 0:03:00.8]} 11... Bb7 {[%clk 0:02:52]} 12. g4 {[%clk 0:02:59.5]} 12... h5
{[%clk 0:02:46.5]} 13. g5 {[%clk 0:02:49.6]} 13... Ng4 {[%clk 0:02:47.6]} 14. g6
{[%clk 0:02:45.5]} 14... O-O-O {[%clk 0:02:12.5]} 15. gxf7 {[%clk 0:02:41.9]}
15... Nc5 {[%clk 0:02:12.5]} 16. b4 {[%clk 0:02:36]} 16... Bf6 {[%clk
0:00:56.3]} 17. bxc5 {[%clk 0:02:16.2]} 17... dxc5 {[%clk 0:00:57.4]} 18. Nxe6
{[%clk 0:02:10]} 18... Qxf7 {[%clk 0:00:58.7]} 19. Nxd8 {[%clk 0:02:09.6]} 19...
Rxd8 {[%clk 0:01:00.6]} 20. Nd5 {[%clk 0:02:01]} 20... Rxd5 {[%clk 0:00:52.9]}
21. exd5 {[%clk 0:02:01.2]} 21... Qxd5 {[%clk 0:00:54.8]} 22. Bf5+ {[%clk
0:00:52.5]} 22... Qxf5 {[%clk 0:00:49.9]} 23. Rfe1 {[%clk 0:00:25.3]} 23... Qd5
{[%clk 0:00:40.2]} 24. Kf1 {[%clk 0:00:26.5]} 24... Bxa1 {[%clk 0:00:34.8]} 25.
Rxa1 {[%clk 0:00:26.2]} 25... Qh1+ {[%clk 0:00:35.3]} 26. Bg1 {[%clk 0:00:27.4]}
26... Kb8 {[%clk 0:00:29.3]} 27. Re1 {[%clk 0:00:25]} 27... g6 {[%clk
0:00:27.8]} 28. Qg3 {[%clk 0:00:20.7]} 28... Ka7 {[%clk 0:00:27.3]} 29. h3
{[%clk 0:00:21.5]} 29... Nf6 {[%clk 0:00:20.5]} 30. Re6 {[%clk 0:00:19.8]} 30...
Ne4 {[%clk 0:00:21.4]} 31. Qe3 {[%clk 0:00:12.7]} 31... h4 {[%clk 0:00:20.3]}
32. Rxg6 {[%clk 0:00:12.2]} 32... Ng3+ {[%clk 0:00:21.2]} 33. Rxg3 {[%clk
0:00:10.7]} 33... hxg3 {[%clk 0:00:23.1]} 34. Qxg3 {[%clk 0:00:12.3]} 34... Qe4
{[%clk 0:00:24.3]} 35. Qf2 {[%clk 0:00:12.2]} 35... Qc4+ {[%clk 0:00:25]} 36.
Qe2 {[%clk 0:00:13]} 36... Qxa2 {[%clk 0:00:25.9]} 37. h4 {[%clk 0:00:13.8]}
37... Qa1+ {[%clk 0:00:27.2]} 38. Kf2 {[%clk 0:00:14.7]} 38... Qd4+ {[%clk
0:00:27.9]} 39. Qe3 {[%clk 0:00:14.7]} 39... Qd5 {[%clk 0:00:29.3]} 40. h5
{[%clk 0:00:13.1]} 40... Qg2+ {[%clk 0:00:30.4]} 41. Ke1 {[%clk 0:00:14.5]}
41... Qg4 {[%clk 0:00:30.1]} 42. Qe2 {[%clk 0:00:10.4]} 42... Qxf4 {[%clk
0:00:31]} 43. Be3 {[%clk 0:00:10.8]} 43... Qh4+ {[%clk 0:00:31.9]} 44. Kd2
{[%clk 0:00:11.7]} 44... a5 {[%clk 0:00:31.9]} 45. h6 {[%clk 0:00:13.1]} 45...
a4 {[%clk 0:00:33.2]} 46. Qd3 {[%clk 0:00:14]} 46... Qb4+ {[%clk 0:00:34.1]} 47.
Kc1 {[%clk 0:00:15]} 47... Qe1+ {[%clk 0:00:34.8]} 48. Kb2 {[%clk 0:00:16.1]}
48... Qb4+ {[%clk 0:00:36.7]} 49. Ka2 {[%clk 0:00:17.4]} 49... Bc6 {[%clk
0:00:21.4]} 50. h7 {[%clk 0:00:18]} 50... Bb5 {[%clk 0:00:22.8]} 51. h8=Q {[%clk
0:00:12.9]} 51... Bc4+ {[%clk 0:00:23.6]} 52. Ka1 {[%clk 0:00:08.8]} 52... Bxd3
{[%clk 0:00:24.7]} 53. cxd3 {[%clk 0:00:09.5]} 53... Qe1+ {[%clk 0:00:26.2]} 54.
Ka2 {[%clk 0:00:09.6]} 54... Qxe3 {[%clk 0:00:27.7]} 55. Qd8 {[%clk 0:00:10.3]}
55... Qd2+ {[%clk 0:00:28]} 56. Ka1 {[%clk 0:00:11.7]} 56... Qc3+ {[%clk
0:00:28.8]} 57. Ka2 {[%clk 0:00:13.1]} 57... Qb3+ {[%clk 0:00:29.9]} 58. Ka1
{[%clk 0:00:14.6]} 58... a3 {[%clk 0:00:20]} 59. Qc7+ {[%clk 0:00:15.2]} 59...
Ka6 {[%clk 0:00:21.4]} 60. Qc8+ {[%clk 0:00:11.8]} 60... Ka5 {[%clk 0:00:21.8]}
61. Qa8+ {[%clk 0:00:07.3]} 61... Kb5 {[%clk 0:00:22.8]} 62. Qe8+ {[%clk
0:00:06.4]} 62... Kb4 {[%clk 0:00:23]} 63. Qe4+ {[%clk 0:00:07.2]} 63... c4
{[%clk 0:00:24]} 64. Qe7+ {[%clk 0:00:07.6]} 64... Kb5 {[%clk 0:00:22.5]} 65.
Qd7+ {[%clk 0:00:07.4]} 65... Kb4 {[%clk 0:00:23.1]} 66. Qd6+ {[%clk 0:00:08.4]}
66... Kc3 {[%clk 0:00:23.2]} 67. Qe5+ {[%clk 0:00:09.7]} 67... Kxd3 {[%clk
0:00:24.2]} 68. Qg3+ {[%clk 0:00:09.6]} 68... Kc2 {[%clk 0:00:25.2]} 69. Qf2+
{[%clk 0:00:10.3]} 69... Kc3 {[%clk 0:00:26.4]} 70. Qd2+ {[%clk 0:00:10.3]}
70... Kxd2 {[%clk 0:00:15.8]} 1/2-1/2